[Event "*** Titled Tuesday Blitz"]
[Site "Chess.com"]
[Date "2021.03.02"]
[Round "1"]
[White "Cptn2"]
[Black "FGHSMN"]
[Result "0-1"]
[WhiteElo "2345"]
[BlackElo "2669"]
[TimeControl "180+1"]
[EndTime "10:08:28 PST"]
[Termination "FGHSMN won by checkmate"]

1. e4 {[%clk 0:02:59.5]} 1... c5 {[%clk 0:02:58.3]} 2. Nf3 {[%clk 0:02:58.9]}
2... e6 {[%clk 0:02:58]} 3. c4 {[%clk 0:02:53.2]} 3... a6 {[%clk 0:02:55.8]} 4.
Nc3 {[%clk 0:02:52.3]} 4... Qc7 {[%clk 0:02:54]} 5. Be2 {[%clk 0:02:52.7]} 5...
Nc6 {[%clk 0:02:50.1]} 6. d4 {[%clk 0:02:52.1]} 6... cxd4 {[%clk 0:02:43.5]} 7.
Nxd4 {[%clk 0:02:53]} 7... Nf6 {[%clk 0:02:43.7]} 8. O-O {[%clk 0:02:51.1]} 8...
Be7 {[%clk 0:02:41.5]} 9. Be3 {[%clk 0:02:49.8]} 9... O-O {[%clk 0:02:39.5]} 10.
f3 {[%clk 0:02:50]} 10... d6 {[%clk 0:02:33]} 11. Qd2 {[%clk 0:02:49.8]} 11...
Bd7 {[%clk 0:02:28.5]} 12. Rac1 {[%clk 0:02:47.5]} 12... Rac8 {[%clk 0:02:11.7]}
13. Rfd1 {[%clk 0:02:47.5]} 13... Rfd8 {[%clk 0:02:06.9]} 14. Bf1 {[%clk
0:02:47.3]} 14... Qb8 {[%clk 0:02:05.6]} 15. Qf2 {[%clk 0:02:47.3]} 15... Ne5
{[%clk 0:02:03.8]} 16. b3 {[%clk 0:02:45.1]} 16... h6 {[%clk 0:02:02.5]} 17. h3
{[%clk 0:02:37.2]} 17... Ng6 {[%clk 0:02:00.7]} 18. f4 {[%clk 0:02:35.7]} 18...
e5 {[%clk 0:01:58.4]} 19. fxe5 {[%clk 0:02:32.2]} 19... dxe5 {[%clk 0:01:56.1]}
20. Nf5 {[%clk 0:02:31.5]} 20... Bxf5 {[%clk 0:01:53.8]} 21. exf5 {[%clk
0:02:32.4]} 21... Nf4 {[%clk 0:01:53]} 22. g3 {[%clk 0:02:29.6]} 22... N4h5
{[%clk 0:01:49.5]} 23. Be2 {[%clk 0:01:59]} 23... e4 {[%clk 0:01:43.2]} 24. Kg2
{[%clk 0:01:47.9]} 24... Bd6 {[%clk 0:01:38.6]} 25. Bxh5 {[%clk 0:01:46.5]}
25... Nxh5 {[%clk 0:01:34.6]} 26. Nxe4 {[%clk 0:01:47]} 26... Ba3 {[%clk
0:01:26]} 27. Rb1 {[%clk 0:01:43.3]} 27... Qe5 {[%clk 0:01:17.1]} 28. Qf3 {[%clk
0:01:35.2]} 28... Re8 {[%clk 0:01:15.3]} 29. Rd4 {[%clk 0:01:22.9]} 29... Nf6
{[%clk 0:00:56.9]} 30. Nxf6+ {[%clk 0:01:19.2]} 30... Qxf6 {[%clk 0:00:57.8]}
31. Rbd1 {[%clk 0:01:14.2]} 31... Bc5 {[%clk 0:00:54.3]} 32. Re4 {[%clk
0:01:13.7]} 32... Rxe4 {[%clk 0:00:53.8]} 33. Qxe4 {[%clk 0:01:12.3]} 33... Bxe3
{[%clk 0:00:54.1]} 34. Qxe3 {[%clk 0:01:12.6]} 34... Qxf5 {[%clk 0:00:54.6]} 35.
Rd2 {[%clk 0:01:09.8]} 35... b5 {[%clk 0:00:51.4]} 36. Qd4 {[%clk 0:00:49.6]}
36... bxc4 {[%clk 0:00:49.6]} 37. bxc4 {[%clk 0:00:50.5]} 37... Qe6 {[%clk
0:00:47.1]} 38. Rc2 {[%clk 0:00:48.8]} 38... Qc6+ {[%clk 0:00:46.3]} 39. Kh2
{[%clk 0:00:45.2]} 39... Re8 {[%clk 0:00:43.6]} 40. Qf2 {[%clk 0:00:41.6]} 40...
Rd8 {[%clk 0:00:34]} 41. c5 {[%clk 0:00:41.9]} 41... Rd5 {[%clk 0:00:27.7]} 42.
h4 {[%clk 0:00:38.5]} 42... h5 {[%clk 0:00:25.3]} 43. a4 {[%clk 0:00:38.4]}
43... Re5 {[%clk 0:00:19.9]} 44. a5 {[%clk 0:00:36.6]} 44... Rd5 {[%clk
0:00:19.3]} 45. Qe3 {[%clk 0:00:35.2]} 45... Kf8 {[%clk 0:00:19.1]} 46. Qf4
{[%clk 0:00:29.8]} 46... Rd1 {[%clk 0:00:18.5]} 47. Qb8+ {[%clk 0:00:28.3]}
47... Ke7 {[%clk 0:00:18.8]} 48. Re2+ {[%clk 0:00:28.4]} 48... Kf6 {[%clk
0:00:16.4]} 49. Qf4+ {[%clk 0:00:21.3]} 49... Kg6 {[%clk 0:00:16.8]} 50. Qg5+
{[%clk 0:00:21.6]} 50... Kh7 {[%clk 0:00:17.3]} 51. Qxh5+ {[%clk 0:00:21.9]}
51... Kg8 {[%clk 0:00:17.9]} 52. Kh3 {[%clk 0:00:16]} 52... Rh1+ {[%clk
0:00:16.7]} 53. Kg4 {[%clk 0:00:16.2]} 53... g6 {[%clk 0:00:10.8]} 54. Qe5
{[%clk 0:00:14.5]} 54... Qd7+ {[%clk 0:00:08.9]} 55. Kg5 {[%clk 0:00:13.6]}
55... Kh7 {[%clk 0:00:08.9]} 56. Qf4 {[%clk 0:00:06.7]} 56... Rd1 {[%clk
0:00:08.3]} 57. Re5 {[%clk 0:00:05.8]} 57... Rd3 {[%clk 0:00:07]} 58. h5 {[%clk
0:00:05]} 58... Rd4 {[%clk 0:00:06.7]} 59. Qf6 {[%clk 0:00:04.5]} 59... Rg4#
{[%clk 0:00:05.7]} 0-1

[Event "*** Titled Tuesday Blitz"]
[Site "Chess.com"]
[Date "2021.03.02"]
[Round "1"]
[White "Smirnov_Pavel"]
[Black "Superfelix"]
[Result "1-0"]
[WhiteElo "2847"]
[BlackElo "2432"]
[TimeControl "180+1"]
[EndTime "10:08:30 PST"]
[Termination "Smirnov_Pavel won on time"]

1. d4 {[%clk 0:02:55.7]} 1... Nf6 {[%clk 0:02:59.1]} 2. c4 {[%clk 0:02:56.2]}
2... g6 {[%clk 0:02:59.5]} 3. Nf3 {[%clk 0:02:56.7]} 3... Bg7 {[%clk 0:02:59.9]}
4. g3 {[%clk 0:02:57.6]} 4... O-O {[%clk 0:03:00.3]} 5. Bg2 {[%clk 0:02:58.5]}
5... d5 {[%clk 0:03:01]} 6. O-O {[%clk 0:02:59.4]} 6... dxc4 {[%clk 0:03:01.2]}
7. Na3 {[%clk 0:02:59.7]} 7... Nc6 {[%clk 0:03:01.7]} 8. Nxc4 {[%clk 0:02:59.1]}
8... Be6 {[%clk 0:03:02.1]} 9. b3 {[%clk 0:02:59.7]} 9... Bd5 {[%clk 0:03:02.5]}
10. Bb2 {[%clk 0:03:00.2]} 10... a5 {[%clk 0:03:03.1]} 11. a3 {[%clk 0:02:54.8]}
11... a4 {[%clk 0:03:02.5]} 12. Ncd2 {[%clk 0:02:47.1]} 12... axb3 {[%clk
0:03:01.4]} 13. Nxb3 {[%clk 0:02:48]} 13... b6 {[%clk 0:03:00]} 14. Rc1 {[%clk
0:02:39.7]} 14... Na5 {[%clk 0:02:59.4]} 15. Nbd2 {[%clk 0:02:37.1]} 15... Ne4
{[%clk 0:02:58.2]} 16. Nxe4 {[%clk 0:02:25.4]} 16... Bxe4 {[%clk 0:02:59.1]} 17.
Re1 {[%clk 0:02:10.5]} 17... c5 {[%clk 0:02:53.8]} 18. e3 {[%clk 0:02:05.4]}
18... c4 {[%clk 0:02:51.3]} 19. Nd2 {[%clk 0:02:01.7]} 19... Bxg2 {[%clk
0:02:51.2]} 20. Kxg2 {[%clk 0:02:02.6]} 20... b5 {[%clk 0:02:48]} 21. Qf3 {[%clk
0:02:02.2]} 21... e6 {[%clk 0:02:42.1]} 22. Bc3 {[%clk 0:01:59.1]} 22... Qd5
{[%clk 0:02:27.1]} 23. Qxd5 {[%clk 0:01:48.4]} 23... exd5 {[%clk 0:02:28]} 24.
Rb1 {[%clk 0:01:49]} 24... Rfb8 {[%clk 0:02:26.2]} 25. a4 {[%clk 0:01:48.9]}
25... Nb3 {[%clk 0:02:14.6]} 26. Nxb3 {[%clk 0:01:46.5]} 26... cxb3 {[%clk
0:02:14.7]} 27. Rxb3 {[%clk 0:01:25]} 27... bxa4 {[%clk 0:02:14.4]} 28. Rxb8+
{[%clk 0:01:25.1]} 28... Rxb8 {[%clk 0:02:15.2]} 29. Ra1 {[%clk 0:01:21.9]}
29... Rb3 {[%clk 0:01:51.3]} 30. Rxa4 {[%clk 0:01:21.4]} 30... Rxc3 {[%clk
0:01:50.5]} 31. Ra5 {[%clk 0:01:21.7]} 31... f5 {[%clk 0:01:43.3]} 32. Rxd5
{[%clk 0:01:21]} 32... Rc7 {[%clk 0:01:42.7]} 33. Ra5 {[%clk 0:01:20.3]} 33...
Kf7 {[%clk 0:01:42.6]} 34. Kf3 {[%clk 0:01:20.2]} 34... Bf6 {[%clk 0:01:42.1]}
35. h3 {[%clk 0:01:19.8]} 35... h5 {[%clk 0:01:41.8]} 36. g4 {[%clk 0:01:17]}
36... hxg4+ {[%clk 0:01:37.8]} 37. hxg4 {[%clk 0:01:17.9]} 37... fxg4+ {[%clk
0:01:34.7]} 38. Kxg4 {[%clk 0:01:18.8]} 38... Rc2 {[%clk 0:01:33.7]} 39. f4
{[%clk 0:01:17.7]} 39... Rg2+ {[%clk 0:01:31.3]} 40. Kf3 {[%clk 0:01:17.5]}
40... Rd2 {[%clk 0:01:30.9]} 41. Ke4 {[%clk 0:01:15.4]} 41... Be7 {[%clk
0:01:27.7]} 42. Ra7 {[%clk 0:01:15.1]} 42... Ke6 {[%clk 0:01:23.8]} 43. Ra6+
{[%clk 0:01:14.8]} 43... Bd6 {[%clk 0:01:21.5]} 44. Ra8 {[%clk 0:01:09.2]} 44...
Rd1 {[%clk 0:01:19.2]} 45. Rg8 {[%clk 0:01:08.1]} 45... Kf7 {[%clk 0:01:19.4]}
46. Ra8 {[%clk 0:01:07.3]} 46... Ke6 {[%clk 0:01:19.3]} 47. Ra7 {[%clk
0:01:06.6]} 47... Rd2 {[%clk 0:01:15.9]} 48. Rg7 {[%clk 0:01:04.6]} 48... Kf6
{[%clk 0:01:16]} 49. Rh7 {[%clk 0:01:03.9]} 49... Rd1 {[%clk 0:01:14.7]} 50. Kd5
{[%clk 0:01:02.6]} 50... Be7 {[%clk 0:01:01.3]} 51. e4 {[%clk 0:01:01.8]} 51...
Ba3 {[%clk 0:00:57.6]} 52. e5+ {[%clk 0:00:57.1]} 52... Kf5 {[%clk 0:00:57.9]}
53. Rf7+ {[%clk 0:00:57.2]} 53... Kg4 {[%clk 0:00:58.2]} 54. Rf6 {[%clk
0:00:41.9]} 54... Bb2 {[%clk 0:00:52.1]} 55. Rxg6+ {[%clk 0:00:41.8]} 55... Kxf4
{[%clk 0:00:52.6]} 56. e6 {[%clk 0:00:37.2]} 56... Rxd4+ {[%clk 0:00:49.2]} 57.
Kc6 {[%clk 0:00:35.2]} 57... Re4 {[%clk 0:00:47.6]} 58. Kd7 {[%clk 0:00:35.2]}
58... Ba3 {[%clk 0:00:38.8]} 59. Rg7 {[%clk 0:00:35.4]} 59... Kf5 {[%clk
0:00:36.7]} 60. e7 {[%clk 0:00:34.6]} 60... Rd4+ {[%clk 0:00:29.8]} 61. Kc8
{[%clk 0:00:33.8]} 61... Rc4+ {[%clk 0:00:29]} 62. Kd7 {[%clk 0:00:33.2]} 62...
Rd4+ {[%clk 0:00:24.9]} 63. Kc8 {[%clk 0:00:32.8]} 63... Bxe7 {[%clk 0:00:18.7]}
64. Rxe7 {[%clk 0:00:32.1]} 64... Kf6 {[%clk 0:00:18.3]} 65. Rd7 {[%clk
0:00:31.4]} 65... Kf5 {[%clk 0:00:17.2]} 66. Rxd4 {[%clk 0:00:29.6]} 1-0

[Event "*** Titled Tuesday Blitz"]
[Site "Chess.com"]
[Date "2021.03.02"]
[Round "1"]
[White "13MiRacLe"]
[Black "kai_nov"]
[Result "1-0"]
[WhiteElo "2723"]
[BlackElo "2391"]
[TimeControl "180+1"]
[EndTime "10:08:32 PST"]
[Termination "13MiRacLe won by resignation"]

1. e4 {[%clk 0:03:00]} 1... c5 {[%clk 0:02:56]} 2. Nf3 {[%clk 0:02:59.9]} 2...
Nc6 {[%clk 0:02:52.5]} 3. d4 {[%clk 0:03:00.4]} 3... cxd4 {[%clk 0:02:52.2]} 4.
Nxd4 {[%clk 0:03:01.3]} 4... Nf6 {[%clk 0:02:51.7]} 5. Nc3 {[%clk 0:03:01.7]}
5... e5 {[%clk 0:02:51.3]} 6. Ndb5 {[%clk 0:03:02]} 6... d6 {[%clk 0:02:50.2]}
7. Bg5 {[%clk 0:03:02.5]} 7... a6 {[%clk 0:02:49.5]} 8. Na3 {[%clk 0:03:03.1]}
8... b5 {[%clk 0:02:47.4]} 9. Bxf6 {[%clk 0:03:03.4]} 9... gxf6 {[%clk
0:02:47.2]} 10. Nd5 {[%clk 0:03:03.7]} 10... f5 {[%clk 0:02:47.3]} 11. g3 {[%clk
0:03:03.8]} 11... Bg7 {[%clk 0:02:46.5]} 12. exf5 {[%clk 0:03:03.6]} 12... Bxf5
{[%clk 0:02:42.5]} 13. Bg2 {[%clk 0:03:04.2]} 13... Be6 {[%clk 0:02:03.9]} 14.
c3 {[%clk 0:03:02]} 14... O-O {[%clk 0:02:01]} 15. Nc2 {[%clk 0:03:02.2]} 15...
a5 {[%clk 0:01:55]} 16. O-O {[%clk 0:02:43.3]} 16... f5 {[%clk 0:01:54.3]} 17.
Nf4 {[%clk 0:02:31.1]} 17... exf4 {[%clk 0:01:46.5]} 18. Bxc6 {[%clk 0:02:30.7]}
18... fxg3 {[%clk 0:01:43.3]} 19. hxg3 {[%clk 0:02:30.1]} 19... Rc8 {[%clk
0:01:32.5]} 20. Bd5 {[%clk 0:02:20.7]} 20... Bxd5 {[%clk 0:01:32]} 21. Qxd5+
{[%clk 0:02:19.9]} 21... Kh8 {[%clk 0:01:32.1]} 22. Nd4 {[%clk 0:01:46.5]} 22...
Rc5 {[%clk 0:01:18.7]} 23. Qf3 {[%clk 0:01:45.1]} 23... Bxd4 {[%clk 0:01:10.5]}
24. cxd4 {[%clk 0:01:45.1]} 24... Rc2 {[%clk 0:00:57.8]} 25. Qb3 {[%clk
0:01:34.8]} 25... Qc7 {[%clk 0:00:41.5]} 26. Qxb5 {[%clk 0:00:55.3]} 26... f4
{[%clk 0:00:40.8]} 27. Qd3 {[%clk 0:00:47.6]} 27... Rxb2 {[%clk 0:00:17.7]} 28.
d5 {[%clk 0:00:33]} 28... Qg7 {[%clk 0:00:17]} 29. a4 {[%clk 0:00:25.2]} 29...
Rb4 {[%clk 0:00:13.3]} 30. Rae1 {[%clk 0:00:19.8]} 30... Rd4 {[%clk 0:00:10.8]}
31. Qb3 {[%clk 0:00:14]} 31... Rb4 {[%clk 0:00:05.2]} 32. Qd3 {[%clk 0:00:13.8]}
32... Rxa4 {[%clk 0:00:04.8]} 33. Re6 {[%clk 0:00:09.6]} 33... Rd4 {[%clk
0:00:04.8]} 34. Qb3 {[%clk 0:00:06]} 34... fxg3 {[%clk 0:00:05]} 35. fxg3 {[%clk
0:00:05.4]} 35... Rg4 {[%clk 0:00:04.4]} 36. Rxf8+ {[%clk 0:00:05]} 36... Qxf8
{[%clk 0:00:04.7]} 37. Qc3+ {[%clk 0:00:04.9]} 37... Kg8 {[%clk 0:00:05]} 38.
Qe3 {[%clk 0:00:04.5]} 38... Qf5 {[%clk 0:00:01.9]} 39. Re8+ {[%clk 0:00:04.5]}
39... Kg7 {[%clk 0:00:02.2]} 40. Qe7+ {[%clk 0:00:04.3]} 40... Kh6 {[%clk
0:00:02.6]} 41. Qe6+ {[%clk 0:00:03.7]} 41... Qxe6 {[%clk 0:00:03]} 42. Rxe6+
{[%clk 0:00:04.6]} 42... Rg6 {[%clk 0:00:03.4]} 43. Re4 {[%clk 0:00:05]} 43...
Rg5 {[%clk 0:00:03.2]} 44. Rd4 {[%clk 0:00:04.8]} 44... Re5 {[%clk 0:00:03.3]}
45. Kf2 {[%clk 0:00:04.9]} 45... Kg5 {[%clk 0:00:03.9]} 46. Kf3 {[%clk
0:00:04.6]} 46... h5 {[%clk 0:00:04.5]} 47. Rd3 {[%clk 0:00:04]} 47... Kf5
{[%clk 0:00:05]} 48. Rd4 {[%clk 0:00:04.3]} 48... Kg5 {[%clk 0:00:05.4]} 49. Rd3
{[%clk 0:00:04.6]} 49... Rf5+ {[%clk 0:00:05.7]} 50. Ke4 {[%clk 0:00:04.7]}
50... Re5+ {[%clk 0:00:05.7]} 51. Kd4 {[%clk 0:00:05.1]} 51... Kg4 {[%clk
0:00:06]} 52. Ra3 {[%clk 0:00:05]} 52... Rf5 {[%clk 0:00:06]} 53. Rxa5 {[%clk
0:00:05]} 53... Kxg3 {[%clk 0:00:06.4]} 54. Ra6 {[%clk 0:00:05.7]} 54... Kg4
{[%clk 0:00:06.6]} 55. Rxd6 {[%clk 0:00:05.2]} 55... h4 {[%clk 0:00:07.3]} 56.
Rg6+ {[%clk 0:00:05]} 56... Kf4 {[%clk 0:00:07.7]} 57. Rh6 {[%clk 0:00:05.2]}
57... Kg5 {[%clk 0:00:07.4]} 58. Rh8 {[%clk 0:00:05.6]} 58... Rf6 {[%clk
0:00:07.8]} 59. Kc5 {[%clk 0:00:05.8]} 59... Rh6 {[%clk 0:00:07.1]} 60. Rxh6
{[%clk 0:00:05.6]} 60... Kxh6 {[%clk 0:00:07.5]} 61. d6 {[%clk 0:00:06.5]} 61...
h3 {[%clk 0:00:08]} 62. d7 {[%clk 0:00:07.4]} 62... h2 {[%clk 0:00:08.6]} 63.
d8=Q {[%clk 0:00:08.3]} 63... h1=Q {[%clk 0:00:08.8]} 64. Qh8+ {[%clk
0:00:08.9]} 64... Kg6 {[%clk 0:00:09.3]} 65. Qxh1 {[%clk 0:00:09.8]} 1-0

[Event "*** Titled Tuesday Blitz"]
[Site "Chess.com"]
[Date "2021.03.02"]
[Round "1"]
[White "zmeeed67"]
[Black "Beca95"]
[Result "0-1"]
[WhiteElo "2442"]
[BlackElo "2880"]
[TimeControl "180+1"]
[EndTime "10:08:34 PST"]
[Termination "Beca95 won on time"]

1. d4 {[%clk 0:03:00.3]} 1... Nf6 {[%clk 0:02:59.5]} 2. c4 {[%clk 0:02:58.9]}
2... c5 {[%clk 0:02:59.7]} 3. d5 {[%clk 0:02:58.9]} 3... e6 {[%clk 0:03:00.2]}
4. Nc3 {[%clk 0:02:58.4]} 4... exd5 {[%clk 0:03:00.7]} 5. cxd5 {[%clk
0:02:59.3]} 5... d6 {[%clk 0:03:01.3]} 6. Nf3 {[%clk 0:02:59.8]} 6... g6 {[%clk
0:03:01.6]} 7. Bf4 {[%clk 0:03:00.3]} 7... a6 {[%clk 0:03:01.2]} 8. a4 {[%clk
0:03:00.2]} 8... Bg7 {[%clk 0:03:01.4]} 9. h3 {[%clk 0:03:00.7]} 9... O-O {[%clk
0:03:01.9]} 10. e3 {[%clk 0:03:01]} 10... Ne8 {[%clk 0:03:02.5]} 11. Nd2 {[%clk
0:03:00.7]} 11... Nd7 {[%clk 0:03:02.9]} 12. Nc4 {[%clk 0:02:59.2]} 12... Ne5
{[%clk 0:03:01.9]} 13. Bxe5 {[%clk 0:02:36.5]} 13... Bxe5 {[%clk 0:03:02.8]} 14.
Nxe5 {[%clk 0:02:34.7]} 14... dxe5 {[%clk 0:03:03.7]} 15. Be2 {[%clk 0:02:30.2]}
15... Nd6 {[%clk 0:03:01.6]} 16. O-O {[%clk 0:02:29.9]} 16... Qg5 {[%clk
0:02:56.4]} 17. Kh2 {[%clk 0:02:25.2]} 17... Bd7 {[%clk 0:02:54.7]} 18. a5
{[%clk 0:02:23.8]} 18... c4 {[%clk 0:02:52.3]} 19. Rc1 {[%clk 0:02:03.4]} 19...
Rac8 {[%clk 0:02:51.4]} 20. Na4 {[%clk 0:01:44.2]} 20... Bb5 {[%clk 0:02:42.9]}
21. Nb6 {[%clk 0:01:35.2]} 21... Rc7 {[%clk 0:02:43.1]} 22. Qe1 {[%clk
0:01:29.9]} 22... e4 {[%clk 0:01:53.2]} 23. Qc3 {[%clk 0:01:22.7]} 23... h5
{[%clk 0:01:51.8]} 24. Qd4 {[%clk 0:01:17.7]} 24... c3 {[%clk 0:01:42.7]} 25.
Bxb5 {[%clk 0:01:10.6]} 25... Nxb5 {[%clk 0:01:42]} 26. Qb4 {[%clk 0:01:09.5]}
26... Qe5+ {[%clk 0:01:39.9]} 27. Kg1 {[%clk 0:01:00.7]} 27... cxb2 {[%clk
0:01:39.6]} 28. Rxc7 {[%clk 0:00:44.9]} 28... Qxc7 {[%clk 0:01:39.4]} 29. Qxb2
{[%clk 0:00:42.8]} 29... Qc3 {[%clk 0:01:33.5]} 30. Qa2 {[%clk 0:00:27.3]} 30...
h4 {[%clk 0:01:28.4]} 31. Rd1 {[%clk 0:00:27.3]} 31... Rd8 {[%clk 0:01:25.9]}
32. Qd2 {[%clk 0:00:16.7]} 32... Kg7 {[%clk 0:01:18.8]} 33. Qxc3+ {[%clk
0:00:13.8]} 33... Nxc3 {[%clk 0:01:19]} 34. Rd2 {[%clk 0:00:14.7]} 34... Kf6
{[%clk 0:01:17.7]} 35. Kf1 {[%clk 0:00:13.8]} 35... Nb5 {[%clk 0:01:15.2]} 36.
Rc2 {[%clk 0:00:09]} 36... Ke7 {[%clk 0:01:15]} 37. Ke2 {[%clk 0:00:08]} 37...
f5 {[%clk 0:01:14.9]} 38. Kd2 {[%clk 0:00:06.6]} 38... Kd6 {[%clk 0:01:14.8]}
39. Rc4 {[%clk 0:00:04.4]} 39... g5 {[%clk 0:01:14.4]} 40. f3 {[%clk 0:00:03.2]}
40... exf3 {[%clk 0:01:13.3]} 41. gxf3 {[%clk 0:00:04.1]} 41... Rg8 {[%clk
0:01:12.6]} 42. Ke2 {[%clk 0:00:04.1]} 42... Ke5 {[%clk 0:01:00.5]} 43. Kf2
{[%clk 0:00:02.9]} 43... Kd6 {[%clk 0:00:54.1]} 44. Rc2 {[%clk 0:00:03]} 44...
g4 {[%clk 0:00:48.1]} 45. fxg4 {[%clk 0:00:02.9]} 45... fxg4 {[%clk 0:00:49]}
46. hxg4 {[%clk 0:00:03.8]} 46... Rxg4 {[%clk 0:00:49]} 47. Kf3 {[%clk
0:00:04.7]} 47... Rg3+ {[%clk 0:00:43.3]} 48. Kf4 {[%clk 0:00:04.7]} 48... Rg8
{[%clk 0:00:42.6]} 49. Rh2 {[%clk 0:00:04.9]} 49... Rh8 {[%clk 0:00:43]} 50. Kg4
{[%clk 0:00:04.7]} 50... Nc3 {[%clk 0:00:37.4]} 51. Rxh4 {[%clk 0:00:03.7]}
51... Rxh4+ {[%clk 0:00:37.5]} 52. Kxh4 {[%clk 0:00:04.6]} 52... Nxd5 {[%clk
0:00:38]} 53. Nc4+ {[%clk 0:00:03.5]} 53... Kc5 {[%clk 0:00:37.3]} 54. Ne5
{[%clk 0:00:02.4]} 54... Nxe3 {[%clk 0:00:37.2]} 55. Kg5 {[%clk 0:00:02.8]}
55... Nc4 {[%clk 0:00:37.2]} 56. Nd3+ {[%clk 0:00:02.4]} 56... Kd4 {[%clk
0:00:36.6]} 57. Nf4 {[%clk 0:00:02.7]} 57... Nxa5 {[%clk 0:00:36.1]} 58. Kf5
{[%clk 0:00:03]} 58... b5 {[%clk 0:00:34.4]} 59. Ne6+ {[%clk 0:00:03.4]} 59...
Kc4 {[%clk 0:00:31.4]} 60. Ke4 {[%clk 0:00:03.2]} 60... Nc6 {[%clk 0:00:30.4]}
61. Ke3 {[%clk 0:00:03.7]} 61... a5 {[%clk 0:00:30.5]} 62. Kd2 {[%clk
0:00:03.4]} 62... b4 {[%clk 0:00:31]} 63. Kc1 {[%clk 0:00:03.1]} 63... a4 {[%clk
0:00:31.2]} 64. Nf4 {[%clk 0:00:01.9]} 64... Nd4 {[%clk 0:00:30.5]} 65. Kb1
{[%clk 0:00:01.7]} 65... a3 {[%clk 0:00:30.7]} 66. Ng2 {[%clk 0:00:01.3]} 66...
Kd3 {[%clk 0:00:24.3]} 67. Ne1+ {[%clk 0:00:01.4]} 67... Kc3 {[%clk 0:00:24.6]}
68. Ka2 {[%clk 0:00:01.4]} 68... b3+ {[%clk 0:00:22.4]} 69. Kxa3 {[%clk
0:00:02.3]} 69... Nc2+ {[%clk 0:00:22.7]} 70. Nxc2 {[%clk 0:00:02.7]} 70... bxc2
{[%clk 0:00:22.7]} 0-1

[Event "*** Titled Tuesday Blitz"]
[Site "Chess.com"]
[Date "2021.03.02"]
[Round "1"]
[White "Ze-Pequeno"]
[Black "KononenkoD"]
[Result "1-0"]
[WhiteElo "2230"]
[BlackElo "2517"]
[TimeControl "180+1"]
[EndTime "10:08:38 PST"]
[Termination "Ze-Pequeno won by checkmate"]

1. e4 {[%clk 0:02:58.3]} 1... c6 {[%clk 0:02:59.3]} 2. b3 {[%clk 0:02:57.1]}
2... d5 {[%clk 0:03:00.2]} 3. Bb2 {[%clk 0:02:57.5]} 3... dxe4 {[%clk
0:02:53.7]} 4. Nc3 {[%clk 0:02:57.5]} 4... Nf6 {[%clk 0:02:51.2]} 5. Nge2 {[%clk
0:02:57.3]} 5... Bf5 {[%clk 0:02:50.6]} 6. Ng3 {[%clk 0:02:56.9]} 6... Bg6
{[%clk 0:02:51.1]} 7. Qe2 {[%clk 0:02:57.1]} 7... Nbd7 {[%clk 0:02:49.2]} 8.
Ncxe4 {[%clk 0:02:56.6]} 8... e6 {[%clk 0:02:49]} 9. O-O-O {[%clk 0:02:56]} 9...
Qa5 {[%clk 0:02:47.7]} 10. Kb1 {[%clk 0:02:56.1]} 10... Ba3 {[%clk 0:02:45]} 11.
Bc3 {[%clk 0:02:54.5]} 11... Qc7 {[%clk 0:02:41.4]} 12. h4 {[%clk 0:02:52.2]}
12... Bxe4 {[%clk 0:02:40.2]} 13. Nxe4 {[%clk 0:02:51.8]} 13... a5 {[%clk
0:02:39]} 14. g4 {[%clk 0:02:39.3]} 14... Rg8 {[%clk 0:02:35.1]} 15. Bg2 {[%clk
0:02:31.1]} 15... Nd5 {[%clk 0:02:33.2]} 16. Ba1 {[%clk 0:02:27.1]} 16... a4
{[%clk 0:02:33.2]} 17. Ng5 {[%clk 0:02:23]} 17... h6 {[%clk 0:02:16.2]} 18. Nxe6
{[%clk 0:02:15.3]} 18... fxe6 {[%clk 0:02:15.9]} 19. Bxd5 {[%clk 0:02:14.8]}
19... cxd5 {[%clk 0:01:57.4]} 20. Qxe6+ {[%clk 0:02:14.4]} 20... Kf8 {[%clk
0:01:57.7]} 21. Rh3 {[%clk 0:02:14.9]} 21... Be7 {[%clk 0:01:33.6]} 22. Rf3+
{[%clk 0:02:10.4]} 22... Nf6 {[%clk 0:01:33.1]} 23. g5 {[%clk 0:02:10.4]} 23...
axb3 {[%clk 0:01:18.5]} 24. axb3 {[%clk 0:02:09.9]} 24... hxg5 {[%clk
0:01:10.7]} 25. hxg5 {[%clk 0:02:06.1]} 25... Ra6 {[%clk 0:01:10.4]} 26. Qxd5
{[%clk 0:01:57.4]} 26... Qa5 {[%clk 0:00:36]} 27. Qxa5 {[%clk 0:01:53]} 27...
Rxa5 {[%clk 0:00:36.9]} 28. gxf6 {[%clk 0:01:51.2]} 28... gxf6 {[%clk 0:00:37]}
29. Bxf6 {[%clk 0:01:49.6]} 29... Bxf6 {[%clk 0:00:36.7]} 30. Rxf6+ {[%clk
0:01:50.5]} 30... Ke7 {[%clk 0:00:37.1]} 31. Rb6 {[%clk 0:01:46.2]} 31... Rga8
{[%clk 0:00:34.1]} 32. Rxb7+ {[%clk 0:01:44.1]} 32... Kd6 {[%clk 0:00:33.9]} 33.
Kb2 {[%clk 0:01:38.8]} 33... Ra2+ {[%clk 0:00:31.8]} 34. Kc3 {[%clk 0:01:39.2]}
34... Rc8+ {[%clk 0:00:32.1]} 35. Kd3 {[%clk 0:01:39.5]} 35... Rcxc2 {[%clk
0:00:31.6]} 36. f4 {[%clk 0:01:27.3]} 36... Rc5 {[%clk 0:00:27.5]} 37. Rb4
{[%clk 0:01:25.9]} 37... Ke6 {[%clk 0:00:24.6]} 38. Rd4 {[%clk 0:01:10.4]} 38...
Rb2 {[%clk 0:00:18.4]} 39. b4 {[%clk 0:01:03.4]} 39... Rcc2 {[%clk 0:00:16.5]}
40. Rc4 {[%clk 0:00:58.9]} 40... Rxc4 {[%clk 0:00:10.1]} 41. Kxc4 {[%clk
0:00:58.8]} 41... Rc2+ {[%clk 0:00:10.2]} 42. Kd3 {[%clk 0:00:52.9]} 42... Ra2
{[%clk 0:00:07.9]} 43. b5 {[%clk 0:00:47.8]} 43... Kd5 {[%clk 0:00:06.6]} 44.
Rb1 {[%clk 0:00:45.5]} 44... Ra3+ {[%clk 0:00:06.6]} 45. Ke2 {[%clk 0:00:45.5]}
45... Ra7 {[%clk 0:00:07.5]} 46. b6 {[%clk 0:00:45.1]} 46... Rb7 {[%clk
0:00:07.9]} 47. Ke3 {[%clk 0:00:45.3]} 47... Kc4 {[%clk 0:00:06]} 48. Ke4 {[%clk
0:00:41]} 48... Re7+ {[%clk 0:00:06.4]} 49. Kf5 {[%clk 0:00:40.7]} 49... Rb7
{[%clk 0:00:07.3]} 50. Ke5 {[%clk 0:00:40.3]} 50... Kc5 {[%clk 0:00:07.5]} 51.
d4+ {[%clk 0:00:38.4]} 51... Kc6 {[%clk 0:00:07.6]} 52. d5+ {[%clk 0:00:38.2]}
52... Kd7 {[%clk 0:00:08]} 53. d6 {[%clk 0:00:37.2]} 53... Kc6 {[%clk
0:00:07.6]} 54. Rc1+ {[%clk 0:00:33.2]} 54... Kb5 {[%clk 0:00:06.1]} 55. Rb1+
{[%clk 0:00:32.3]} 55... Kc6 {[%clk 0:00:05.9]} 56. Ke6 {[%clk 0:00:32.3]} 56...
Rb8 {[%clk 0:00:05.8]} 57. Rc1+ {[%clk 0:00:32]} 57... Kb7 {[%clk 0:00:05.2]}
58. d7 {[%clk 0:00:31.9]} 58... Rh8 {[%clk 0:00:05.1]} 59. Rc8 {[%clk
0:00:30.9]} 59... Rh6+ {[%clk 0:00:04.9]} 60. Kd5 {[%clk 0:00:30.5]} 60... Rh5+
{[%clk 0:00:04.6]} 61. Ke4 {[%clk 0:00:30.4]} 61... Rh4 {[%clk 0:00:04.2]} 62.
d8=Q {[%clk 0:00:29]} 62... Rh1 {[%clk 0:00:03.6]} 63. Qc7+ {[%clk 0:00:27.5]}
63... Ka6 {[%clk 0:00:04.5]} 64. Ra8+ {[%clk 0:00:27.6]} 64... Kb5 {[%clk
0:00:05.1]} 65. Qd7+ {[%clk 0:00:27.3]} 65... Kc5 {[%clk 0:00:04.9]} 66. Qd5+
{[%clk 0:00:25.7]} 66... Kb4 {[%clk 0:00:04.6]} 67. b7 {[%clk 0:00:24.5]} 67...
Re1+ {[%clk 0:00:03.5]} 68. Kf5 {[%clk 0:00:24.4]} 68... Rf1 {[%clk 0:00:03.3]}
69. b8=Q+ {[%clk 0:00:23.5]} 69... Kc3 {[%clk 0:00:04.2]} 70. Qc7+ {[%clk
0:00:23.1]} 70... Kb2 {[%clk 0:00:04.3]} 71. Qb5# {[%clk 0:00:22]} 1-0